bitfinex/quotes_ETHUSD_20250511
["timestamp","ask_amount","ask_price","bid_price","bid_amount"]
[1746958913412,3.99499088,2503.2,2502.5,0.8218]
[1746958913707,10.05,2503.2,2502.5,0.8218]
[1746958913913,3.9954697,2502.9,2501.9,0.8218]
[1746958914124,8.0,2502.9,2502.0,2.778]
[1746958914291,0.38225477,2502.8,2502.1,0.8218]
[1746958914822,0.38225477,2502.8,2502.3,0.8218]
[1746958914990,0.16010151,2502.8,2502.4,0.55]
[1746958915502,10.05,2503.2,2502.5,0.8218]
[1746958915698,0.16004551,2502.7,2502.6,2.778]
[1746958915904,0.22265763,2503.1,2502.6,2.778]
[1746958916278,0.16004551,2503.0,2502.7,0.55]
[1746958916778,0.16004551,2503.0,2502.9,0.8218]
[1746958917178,10.05,2503.4,2502.9,0.8218]
[1746958917494,0.22264957,2503.3,2502.9,0.8218]
[1746958917702,0.38269508,2503.3,2503.0,0.03994904]
[1746958918310,0.16004551,2503.3,2503.0,0.03994904]
[1746958918521,0.16004551,2503.3,2503.1,0.55]
[1746958918806,0.16004551,2503.3,2503.2,2.81794387]
[1746958919110,10.05,2504.0,2503.3,0.55]
[1746958919408,3.99271,2504.6,2503.7,0.55]
[1746958919409,0.22272305,2503.9,2503.7,0.55]
[1746958919594,0.22272305,2503.9,2503.8,3.36793383]
[1746958919794,0.22272305,2503.9,2503.8,3.328]
[1746958920106,0.7912,2504.6,2503.9,0.55]
[1746958920274,10.05,2504.7,2504.0,0.03992996]
[1746958920477,3.5672,2504.9,2504.2,0.55]
[1746958920478,10.8412,2504.9,2504.2,0.55]
[1746958920679,10.05,2504.9,2504.4,0.55]
[1746958920996,0.22270399,2504.8,2504.6,0.8218]
[1746958921815,0.22270399,2504.8,2504.0,3.5988]
[1746958921816,2.04117439,2504.8,2504.0,3.5988]
[1746958921981,3.99297082,2504.5,2504.0,2.777]
[1746958922415,2.775,2504.6,2504.0,2.777]
[1746958922601,3.99300306,2504.4,2504.0,2.777]
[1746958922912,0.7955,2504.3,2504.0,2.777]
[1746958923090,0.22270399,2504.2,2504.0,2.777]
[1746958923684,0.7955,2504.3,2504.0,2.777]
[1746958924223,0.47884842,2504.2,2504.0,2.777]
[1746958924423,0.7955,2504.3,2504.0,2.777]
[1746958925320,0.22227073,2504.2,2504.0,2.777]
[1746958926117,0.7955,2504.3,2504.0,2.777]
[1746958927027,3.5705,2504.6,2504.0,2.777]
[1746958927831,10.05,2504.7,2504.2,0.55]
[1746958928122,0.7684,2504.9,2504.3,0.8295]
[1746958928323,10.05,2505.0,2504.3,0.86942995]
[1746958928482,13.5924,2505.1,2504.3,0.8295]
[1746958928682,0.22216838,2505.0,2504.3,0.8295]
[1746958929684,13.5924,2505.1,2504.3,0.8295]
[1746958930333,10.05,2505.1,2504.4,0.58992407]
[1746958930499,10.05,2505.1,2504.5,0.8295]
[1746958930700,10.05,2505.1,2504.6,2.8149209]
[1746958930900,10.05,2505.1,2504.6,2.775]
[1746958931834,10.05,2505.1,2504.8,0.7814]
[1746958932584,0.16664942,2505.0,2504.8,0.7814]
[1746958932804,0.16664942,2505.0,2504.6,2.775]
[1746958933006,0.16664942,2505.0,2504.6,3.593]
[1746958934634,0.16664942,2505.0,2504.7,0.55]
[1746958936033,0.16664942,2505.0,2504.8,0.03991832]
[1746958936530,0.16664942,2505.0,2504.9,0.818]
[1746958936717,0.16664942,2505.0,2504.9,1.368]
[1746958937119,14.04092289,2505.7,2504.9,1.368]
[1746958937318,0.16754412,2505.0,2504.9,0.818]
[1746958937497,3.99125297,2505.5,2504.9,0.818]
[1746958937799,3.99115027,2505.6,2504.6,3.6003]
[1746958937800,3.99181911,2505.2,2504.6,3.6003]
[1746958937996,0.16754412,2505.4,2504.6,3.6003]
[1746958938204,3.99161756,2505.3,2504.6,3.6003]
[1746958938512,3.99180704,2505.2,2504.6,3.6003]
[1746958939137,4.15943059,2505.1,2504.6,3.6003]
[1746958939538,0.16754412,2505.1,2504.6,3.6003]
[1746958939733,4.15943485,2505.1,2504.6,3.6003]
[1746958940544,0.16754412,2505.1,2504.6,3.6003]
[1746958941026,0.16754412,2505.0,2504.6,3.6003]
[1746958941429,2.772,2505.4,2504.7,0.03992305]
[1746958941723,0.16754412,2504.9,2504.7,0.03992305]
[1746958941923,0.8153,2505.6,2504.7,0.55]
[1746958942129,0.16754412,2504.8,2504.7,0.58991833]
[1746958942337,15.57844053,2505.6,2504.7,0.55]
[1746958942731,0.16930629,2505.5,2504.7,0.55]
[1746958944921,3.99137862,2505.4,2504.6,0.8253]
[1746958945119,0.8153,2505.3,2504.6,0.8253]
[1746958945536,0.16930629,2505.2,2504.6,0.8253]
[1746958946755,8.0,2505.1,2504.6,0.8253]
[1746958947232,0.16930629,2505.0,2504.6,0.8253]
[1746958948838,0.16930629,2505.0,2504.7,0.03992312]
[1746958949144,0.16930629,2505.0,2504.6,0.8253]
[1746958949343,0.16930629,2505.0,2504.7,0.55]
[1746958949713,10.05,2505.3,2504.9,0.55]
[1746958950149,10.05,2505.3,2505.0,2.774]
[1746958950317,2.771,2505.8,2505.1,1.3753]
[1746958950519,13.6363,2505.9,2505.2,0.03991265]
[1746958950746,8.0,2505.8,2505.2,0.03991265]
[1746958950922,0.22276958,2505.8,2505.2,0.03991265]
[1746958951248,8.22276958,2505.8,2505.1,0.8253]
[1746958951432,8.22276958,2505.8,2505.2,0.03991265]
[1746958951742,0.22276958,2505.7,2505.2,0.03991265]
[1746958951947,0.22276958,2505.7,2505.3,0.55]
[1746958952115,0.22276958,2505.7,2505.4,0.03990915]
[1746958952315,0.22276958,2505.7,2505.5,0.7716]
[1746958952546,10.05,2505.9,2505.5,0.7716]
[1746958952917,10.05,2505.9,2505.6,2.773]
[1746958953113,8.0,2505.8,2505.3,0.7716]
[1746958953318,8.0,2505.6,2505.0,0.7716]
[1746958953514,0.22266359,2505.5,2505.0,0.7716]
[1746958953719,0.22266359,2505.5,2505.1,0.03991428]
[1746958954434,8.0,2505.6,2505.0,0.7716]
[1746958954650,8.0,2505.6,2505.1,0.03991431]
[1746958954967,8.0,2505.6,2505.0,0.7716]
[1746958956727,0.8307,2505.5,2504.8,3.323]
[1746958956942,8.0,2505.4,2504.8,2.773]
[1746958957241,4.82196746,2505.5,2504.8,2.773]
[1746958957242,0.8307,2505.5,2504.8,2.773]
[1746958957459,0.22304302,2505.4,2504.8,2.773]
[1746958958249,0.22304302,2505.3,2504.9,0.55]
[1746958958450,0.22304302,2505.3,2505.0,0.82161462]
[1746958958659,0.22304302,2505.3,2505.0,0.7817]
[1746958959529,0.22304302,2505.5,2505.1,0.55]
[1746958959745,0.22304302,2505.5,2505.2,0.0399118]
[1746958959971,0.22304302,2505.5,2505.0,0.7817]
[1746958960335,0.22304302,2505.4,2505.0,0.7817]
[1746958961247,8.0,2505.6,2505.0,0.7817]
[1746958961927,0.22302321,2505.5,2505.1,0.55]
[1746958962129,0.22302321,2505.5,2505.2,0.7817]
[1746958962330,0.22302321,2505.5,2505.3,0.03991085]
[1746958962549,0.22302321,2505.5,2505.4,2.77]
[1746958963133,0.1583942,2505.5,2505.4,3.32]
[1746958963858,8.0,2506.0,2505.4,3.32]
[1746958964178,0.1583942,2505.5,2505.4,3.32]
[1746958964375,8.0,2506.0,2505.4,3.32]
[1746958964668,0.22285896,2505.9,2505.4,3.32]
[1746958964849,0.38125316,2505.9,2505.4,3.32]
[1746958965375,0.1583942,2505.9,2505.4,3.32]
[1746958968373,3.99082089,2505.8,2505.0,2.77]
[1746958968673,3.5679,2505.7,2505.0,2.77]
[1746958968873,3.72738616,2505.7,2505.0,2.77]
[1746958969056,4.52146959,2505.7,2505.0,2.77]
[1746958969250,0.22278859,2505.6,2505.0,2.77]
[1746958969479,4.2138852,2505.6,2505.0,2.77]
[1746958969678,0.15948616,2505.5,2505.0,2.77]
[1746958970343,0.22278859,2505.4,2505.0,2.77]
[1746958970886,0.15948616,2505.3,2505.0,2.77]
[1746958971176,0.22278859,2505.6,2505.0,2.77]
[1746958971373,0.15948616,2505.2,2505.0,2.77]
[1746958971581,2.08534787,2505.6,2505.0,2.77]
[1746958972180,0.38227475,2505.5,2505.0,2.77]
[1746958973170,0.22278859,2505.4,2505.0,2.77]
[1746958973688,0.15948616,2505.3,2505.0,2.77]
[1746958974002,0.22278859,2505.5,2505.0,2.77]
[1746958974303,1.87252172,2505.5,2505.0,2.77]
[1746958974503,0.15898208,2505.4,2505.0,2.77]
[1746958974796,0.38177067,2505.4,2505.0,2.77]
[1746958975771,0.22278859,2505.3,2505.0,2.77]
[1746958976154,0.15741402,2505.2,2505.0,2.77]
[1746958976351,0.22278859,2505.3,2505.0,2.77]
[1746958976884,2.768,2505.6,2505.0,2.77]
[1746958976885,0.15733,2505.2,2505.0,2.77]
[1746958977069,0.22278859,2505.5,2505.0,2.77]
[1746958977276,0.15733,2505.1,2505.0,2.77]
[1746958977446,3.5854,2505.2,2504.5,3.5505]
[1746958977646,10.05,2505.4,2504.6,0.55]
[1746958977647,0.15733,2505.1,2504.6,0.55]
[1746958977866,0.38011859,2505.1,2504.6,0.55]
[1746958978468,0.22278859,2505.0,2504.6,0.55]
[1746958978655,0.22278859,2505.0,2504.8,0.7805]
[1746958978855,0.22278859,2505.0,2504.9,0.03991763]
[1746958979203,0.22278859,2505.3,2504.9,0.03991763]
[1746958981299,0.22278859,2505.3,2505.2,0.55]
[1746958981590,0.22278859,2505.7,2505.1,0.7805]
[1746958981785,1.22778859,2505.7,2505.2,2.77]
[1746958982460,0.22278859,2505.6,2505.2,2.77]
[1746958983270,0.22278859,2505.5,2505.2,2.77]
[1746958983905,0.22278859,2505.4,2505.2,2.77]
[1746958984079,0.22278859,2505.4,2505.1,0.7805]
[1746958984080,0.8075,2505.3,2504.9,2.77]
[1746958984905,0.22278859,2505.4,2504.9,2.77]
[1746958985096,0.22278859,2505.2,2504.9,2.77]
[1746958985675,0.22278859,2505.6,2505.0,0.8238]
[1746958986373,0.22278859,2505.6,2505.0,0.86371477]
[1746958986560,0.22278859,2505.5,2505.0,0.86371477]
[1746958986996,0.22278859,2505.5,2505.0,0.8238]
[1746958987368,0.22278859,2505.5,2505.0,0.86371479]
[1746958987673,0.22278859,2505.4,2505.1,0.55]
[1746958988187,0.22278859,2505.6,2505.0,0.8238]
[1746958988998,0.22278859,2505.6,2505.1,0.35938]
[1746958989183,0.8075,2505.7,2505.0,0.8238]
[1746958989184,0.22278859,2505.5,2505.0,0.8238]
[1746958989375,0.22278859,2505.5,2505.1,0.58991325]
[1746958989776,0.22278859,2505.5,2505.3,0.8238]
[1746958990015,0.22278859,2505.5,2505.4,0.03990863]
[1746958990187,10.05,2505.8,2505.4,0.03990863]
[1746958990366,0.8075,2506.1,2505.5,2.766]
[1746958990560,10.05,2506.3,2505.6,0.03990797]
[1746958990765,10.8575,2506.3,2505.6,0.55]
[1746958990967,0.22340932,2506.2,2505.6,0.55]
[1746958991979,0.22340932,2506.1,2505.6,0.55]
[1746958992862,0.22340932,2506.0,2505.6,0.55]
[1746958993062,0.36868284,2506.0,2505.6,0.55]
[1746958993880,0.14527352,2506.0,2505.6,0.55]
[1746958994081,8.0,2506.2,2505.6,0.55]
[1746958994299,0.14527352,2505.9,2505.7,0.8238]
[1746958994484,8.0,2506.2,2505.7,0.8238]
[1746958994811,3.98933306,2506.7,2505.7,0.8238]
[1746958994812,0.14791038,2505.8,2505.7,1.3738]
[1746958994985,0.22336775,2506.1,2505.8,0.55]
[1746958995493,0.14791038,2506.0,2505.8,0.55]
[1746958995691,0.14791038,2506.0,2505.9,12.9469]
[1746958995875,0.14791038,2506.0,2505.9,8.677064]
[1746958996080,0.8075,2506.9,2506.0,0.55]
[1746958996305,1.28713009,2506.9,2506.1,2.765]
[1746958996506,0.8075,2506.9,2506.2,0.8238]
[1746958996799,8.8075,2506.9,2506.2,0.8238]
[1746958997015,8.0,2506.7,2506.2,2.765]
[1746958997172,0.22294343,2506.6,2506.2,2.765]
[1746958997371,0.8316,2506.5,2506.2,2.765]
[1746958997681,0.504402,2506.4,2506.2,2.765]
[1746958998176,0.8316,2506.5,2506.2,2.765]
[1746958998389,0.22294343,2506.3,2506.2,3.5167]
[1746958998594,0.22294343,2506.3,2506.2,2.765]
[1746958998974,8.8316,2506.7,2506.2,2.765]
[1746959000032,0.22273376,2506.6,2506.2,2.765]
[1746959000192,2.13316714,2506.6,2506.2,2.765]
[1746959000771,0.22273376,2506.5,2506.2,2.765]
[1746959001790,1.91043338,2506.6,2506.2,2.765]
[1746959002613,12.80643006,2506.2,2505.3,0.8311]
[1746959002794,8.0,2505.9,2505.3,3.5961]
[1746959003302,8.0,2506.0,2505.3,3.5961]
[1746959003498,11.99044626,2506.0,2505.3,3.5961]
[1746959003725,0.8163,2505.8,2505.3,2.765]
[1746959003920,8.0,2505.7,2505.3,2.765]
[1746959004523,0.22257516,2505.6,2505.3,2.765]
[1746959005498,0.22257516,2505.5,2505.4,0.8311]
[1746959006324,8.0,2505.7,2505.4,0.8311]
[1746959006824,8.0,2505.7,2505.3,2.765]
[1746959007928,18.05,2505.7,2504.3,0.19551917]
[1746959008129,18.05,2505.7,2503.5,0.7665]
[1746959008130,0.8083,2504.5,2503.5,0.7665]
[1746959008505,8.12205128,2504.4,2503.5,0.7665]
[1746959008907,0.12205128,2504.4,2503.6,0.03993582]
[1746959009105,0.12205128,2504.4,2503.7,2.765]
[1746959009311,8.0,2504.7,2504.0,0.55]
[1746959009514,0.12205128,2504.3,2503.9,0.7665]
[1746959009697,8.0,2504.7,2504.0,0.55]
[1746959009900,0.11844688,2504.2,2504.0,0.55]
[1746959010100,8.0,2504.7,2504.0,0.55]
[1746959010302,0.11844688,2504.1,2504.0,0.55]
[1746959010524,8.0,2504.7,2503.9,0.7665]
[1746959010719,0.11844688,2504.1,2504.0,0.55]
[1746959010922,8.0,2504.7,2504.0,0.58993027]
[1746959011238,8.0,2505.1,2504.3,0.7665]
[1746959011446,3.5703,2505.2,2504.4,2.765]
[1746959012106,8.0,2505.1,2504.4,2.765]
[1746959012515,8.0,2505.1,2504.4,2.80492615]
[1746959012738,8.0,2505.1,2504.4,2.765]
[1746959013117,8.8083,2505.2,2504.4,2.765]
[1746959014017,12.80005168,2505.2,2504.4,2.765]
[1746959014207,10.76364772,2505.2,2504.4,2.765]
[1746959014409,8.8083,2505.2,2504.4,2.765]
[1746959015315,0.7601,2505.4,2504.6,0.7506]
[1746959015640,8.7601,2505.4,2504.6,0.7506]
[1746959015848,11.5221,2505.6,2504.7,0.03992025]
[1746959016143,3.5221,2505.6,2504.7,0.03992025]
[1746959016440,8.0,2505.5,2504.7,0.03992025]
[1746959017019,8.7601,2505.6,2504.7,0.03992025]
[1746959018343,12.75118464,2505.6,2504.7,0.03992025]
[1746959018647,3.99124516,2505.5,2504.6,0.7506]
[1746959019130,15.24190426,2505.6,2504.6,0.7506]
[1746959019333,11.25076376,2505.6,2504.7,0.03991848]
[1746959019534,8.7601,2505.6,2504.7,0.03991848]
[1746959019907,8.0,2505.6,2504.9,0.7506]
[1746959020133,8.0,2505.6,2505.0,2.80191429]
[1746959022046,3.99034624,2506.1,2505.0,2.80191429]
[1746959022047,0.7601,2506.5,2505.3,0.55]
[1746959022230,0.7601,2506.5,2505.4,0.7506]
[1746959022549,8.0,2506.3,2505.4,3.5126]
[1746959022742,8.8224,2506.1,2505.4,3.5126]
[1746959022946,14.86267379,2506.1,2505.4,0.7506]
[1746959023124,8.0,2505.9,2505.5,2.762]
[1746959023325,12.11013203,2506.0,2505.5,2.762]
[1746959023509,8.0,2506.0,2505.5,2.762]
[1746959023713,2.40596135,2505.9,2505.5,2.762]
[1746959024331,0.11968636,2505.9,2505.5,2.762]
[1746959026511,0.11968636,2505.9,2505.5,2.80191022]
[1746959026740,10.05,2506.1,2505.5,2.762]
[1746959026944,0.11968636,2505.8,2505.5,2.762]
[1746959027145,18.05,2506.3,2505.5,2.762]
[1746959027832,0.11968636,2506.2,2505.5,2.762]
[1746959028023,0.11968636,2506.2,2505.6,0.03990577]
[1746959029422,0.11968636,2506.2,2505.7,0.7932]
[1746959030452,0.11968636,2506.2,2505.7,0.7293]
[1746959031557,0.11968636,2506.2,2505.8,2.762]
[1746959031763,10.05,2506.3,2505.9,0.03990309]
[1746959031947,10.05,2506.3,2505.8,2.762]
[1746959031948,0.12314861,2506.1,2505.8,2.762]
[1746959032256,10.05,2506.3,2505.8,2.762]
[1746959032451,0.12314861,2506.0,2505.8,2.762]
[1746959032643,10.05,2506.3,2505.8,2.762]
[1746959032845,0.12314861,2505.9,2505.8,2.762]
[1746959033050,10.05,2506.3,2505.8,2.762]
[1746959033254,0.12314861,2505.9,2505.8,2.762]
[1746959033458,10.05,2506.3,2505.9,0.7996]
[1746959035369,10.05,2506.3,2505.9,0.83950132]
[1746959035927,8.0,2506.8,2505.9,0.83950132]
[1746959036520,10.05,2506.9,2505.9,0.83950132]
[1746959037360,10.05,2506.9,2505.9,8.83950132]
[1746959038122,0.7543,2506.6,2505.9,0.7996]
[1746959038328,0.47437233,2506.5,2506.0,2.761]
[1746959038667,0.7543,2506.6,2506.0,2.761]
[1746959038885,0.12314861,2506.4,2506.0,2.761]
[1746959039053,14.7933749,2506.9,2506.0,2.761]
[1746959039252,0.12314861,2506.3,2506.0,2.761]
[1746959039454,14.7933749,2506.9,2506.0,2.761]
[1746959039663,0.12314861,2506.2,2506.0,2.761]
[1746959039881,14.7933749,2506.9,2506.0,2.761]
[1746959040176,0.12314861,2506.8,2506.0,2.761]
[1746959040344,0.34482913,2506.8,2506.0,2.761]
[1746959040678,5.87734401,2506.8,2506.0,2.761]
[1746959040872,3.98931773,2506.7,2506.0,2.761]
[1746959041075,5.87733323,2506.8,2506.0,2.761]
[1746959041241,0.12399261,2506.6,2506.0,2.761]
[1746959041582,1.5433192,2506.8,2506.0,2.761]
[1746959041736,0.12399261,2506.5,2506.0,2.761]
[1746959041941,10.05,2506.9,2506.1,8.803]
[1746959042176,0.12399261,2506.4,2506.1,8.803]
[1746959042382,10.05,2506.9,2506.1,8.84289831]
[1746959042691,0.12399261,2506.3,2506.1,8.84289831]
[1746959042983,10.05,2506.9,2506.1,8.84289831]
[1746959043142,0.12742567,2506.2,2506.1,8.84289831]
[1746959043337,10.05,2507.0,2506.1,8.84289831]
[1746959043589,0.12742567,2506.2,2506.1,8.84289831]
[1746959043759,14.0388477,2507.0,2506.1,8.84289831]
[1746959043953,1.97719707,2506.9,2506.1,8.84289831]
[1746959044180,2.10462274,2506.9,2506.1,8.803]
[1746959044656,1.88264044,2506.9,2506.1,8.803]
[1746959045389,0.12742567,2506.9,2506.2,0.03989703]
[1746959045554,0.12742567,2506.9,2506.1,8.0]
[1746959045555,0.12742567,2506.9,2506.5,0.8067]
[1746959045872,3.98845431,2507.3,2506.6,2.761]
[1746959046082,0.11841893,2506.8,2506.6,2.761]
[1746959046384,0.11841893,2506.7,2506.6,2.761]
[1746959046583,3.9885368,2507.2,2506.6,2.761]
[1746959046782,0.11841893,2506.7,2506.6,2.761]
[1746959047284,0.81,2507.0,2506.3,0.8067]
[1746959047576,0.81,2507.0,2506.1,3.5677]
[1746959047778,0.34078221,2506.9,2506.2,2.761]
[1746959047978,0.34078221,2506.9,2506.3,8.8067]
[1746959048350,0.1185879,2506.9,2506.3,8.8067]
[1746959048578,10.05,2507.1,2506.3,8.8067]
[1746959048782,0.11827811,2506.8,2506.3,8.8067]
[1746959049079,10.05,2507.1,2506.3,8.8067]
[1746959049260,0.11827811,2506.7,2506.3,8.8067]
[1746959049455,1.403857,2507.0,2506.3,8.8067]
[1746959049656,1.403857,2507.0,2506.2,2.761]
[1746959049657,0.11827811,2506.6,2506.2,2.758]
[1746959049957,0.11824995,2506.5,2506.2,2.758]
[1746959050272,4.79923496,2506.8,2506.2,2.758]
[1746959050467,0.11824995,2506.4,2506.2,2.758]
[1746959050674,0.7557235,2506.7,2506.2,2.758]
[1746959050872,0.11824995,2506.3,2506.2,2.758]
[1746959051073,0.22236461,2506.6,2506.2,2.758]
[1746959051269,0.11824995,2506.3,2506.2,2.758]
[1746959051484,0.22236461,2506.6,2506.2,2.758]
[1746959051685,0.11824995,2506.3,2506.2,2.758]
[1746959051859,0.22236461,2506.5,2506.2,2.758]
[1746959052065,0.11824995,2506.3,2506.2,2.758]
[1746959052574,1.58272862,2506.6,2506.2,2.758]
[1746959052778,0.11824995,2506.3,2506.2,2.758]
[1746959053081,5.57222602,2506.6,2506.2,2.758]
[1746959053283,0.11824995,2506.3,2506.2,2.758]
[1746959053453,1.63779495,2506.5,2506.2,2.758]
[1746959053654,0.11824995,2506.3,2506.2,2.758]
[1746959054285,1.63779495,2506.5,2506.2,2.758]
[1746959054485,0.11824995,2506.3,2506.2,2.758]
[1746959054652,0.8151,2506.4,2505.5,0.8298]
[1746959054856,4.80544143,2506.1,2505.4,2.758]
[1746959055156,0.11748943,2506.0,2505.4,2.758]
[1746959055763,3.99097568,2505.7,2505.4,2.758]
[1746959055962,0.8151,2505.8,2505.4,2.758]
[1746959056168,0.11436228,2505.6,2505.4,2.758]
[1746959056567,0.22237949,2505.9,2505.4,2.758]
[1746959056770,0.11436228,2505.5,2505.4,2.758]
[1746959056989,0.22237949,2505.9,2505.5,0.8298]
[1746959057686,4.78635516,2505.8,2505.4,2.758]
[1746959057884,0.22237949,2505.7,2505.4,2.758]
[1746959058555,0.22237949,2505.6,2505.4,2.758]
[1746959059291,4.21345163,2505.6,2505.4,2.758]
[1746959059489,0.82043864,2505.5,2505.4,2.758]
[1746959059792,10.05,2505.6,2505.4,2.758]
[1746959059964,10.05,2505.6,2505.5,0.8254]
[1746959060164,10.05,2505.6,2505.4,2.758]
[1746959062990,3.99043636,2506.0,2505.4,2.758]
[1746959063193,3.99064894,2505.9,2505.4,2.758]
[1746959064264,3.99077291,2505.8,2505.1,15.1852]
[1746959064489,0.8245,2505.7,2505.2,2.759]
[1746959065364,4.815421,2505.7,2505.2,2.759]
[1746959065565,0.8245,2505.7,2505.2,2.759]
[1746959065810,4.81550873,2505.7,2505.2,2.759]
[1746959066107,0.88063362,2505.6,2505.2,2.759]
[1746959066286,4.81550873,2505.7,2505.2,2.759]
[1746959066487,3.99106002,2505.6,2505.2,2.759]
[1746959067001,3.99123368,2505.5,2505.2,2.759]
[1746959067369,3.99112167,2505.6,2505.2,2.759]
[1746959067719,0.8245,2505.7,2505.2,2.759]
[1746959068015,4.58697139,2505.6,2505.2,2.759]
[1746959068862,14.63697139,2505.6,2505.2,2.759]
[1746959069609,10.64588981,2505.6,2505.2,2.759]
[1746959069910,0.11436228,2505.6,2505.3,8.58991757]
[1746959070070,0.11436228,2505.6,2505.4,0.8204]
[1746959070407,14.04009091,2506.3,2505.4,0.8204]
[1746959070593,0.11126192,2506.2,2505.4,0.8204]
[1746959070969,4.10137576,2506.2,2505.4,0.8204]
[1746959071198,4.10141477,2506.2,2505.4,0.8204]
[1746959071406,4.78970403,2506.0,2505.4,0.8204]
[1746959071614,0.11241758,2505.9,2505.4,0.8204]
[1746959072579,17.59622791,2506.3,2505.4,0.8204]
[1746959072774,0.11241758,2505.8,2505.4,0.8204]
[1746959072980,1.75962279,2506.2,2505.4,0.8204]
[1746959073294,0.11241758,2506.1,2505.4,0.8204]
[1746959073497,0.33395422,2506.1,2505.4,0.8204]
[1746959073702,4.3242281,2506.1,2505.4,0.8204]
[1746959073892,0.60838509,2506.0,2505.4,0.8204]
[1746959074472,0.11241758,2505.9,2505.4,0.8204]
[1746959076002,0.11241758,2505.8,2505.4,0.8204]
[1746959076186,3.99032019,2506.1,2505.4,0.8204]
[1746959076391,0.11241758,2505.7,2505.4,0.8204]
[1746959076703,5.74979318,2506.2,2505.4,0.8204]
[1746959077006,1.93559932,2506.1,2505.4,0.8204]
[1746959077215,0.22199362,2506.0,2505.4,0.8204]
[1746959077588,0.11241758,2505.9,2505.4,0.8204]
[1746959078604,0.11241758,2505.8,2505.4,0.8204]
[1746959078804,1.75962279,2506.2,2505.4,0.8204]
[1746959079013,2.04799493,2506.1,2505.4,0.8204]
[1746959079310,2.04799493,2506.1,2505.5,2.759]
[1746959079804,0.22235059,2506.0,2505.5,2.759]
[1746959080210,0.11241758,2505.9,2505.5,2.759]
[1746959080704,0.22235059,2505.8,2505.5,2.759]
[1746959080892,10.05,2505.7,2505.1,14.363]
[1746959081305,3.99147754,2505.4,2505.1,14.363]
[1746959081519,3.99141356,2505.4,2505.1,14.363]
[1746959081718,3.99138481,2505.4,2505.1,14.363]
[1746959082010,0.33592384,2505.3,2505.1,14.363]
[1746959082879,0.22235059,2505.2,2505.1,14.363]
[1746959083416,0.11357325,2505.2,2505.1,14.363]
[1746959083710,0.22235059,2505.3,2505.1,14.363]
[1746959083881,0.11357325,2505.2,2505.1,14.363]
[1746959084211,0.22235059,2505.3,2505.1,14.363]
[1746959084417,0.33592384,2505.2,2505.1,14.363]
[1746959086005,0.33592384,2505.2,2505.0,2.756]
[1746959086514,0.11357325,2505.2,2505.0,2.756]
[1746959086880,3.99111433,2505.6,2505.0,2.756]
[1746959087098,0.11357325,2505.1,2505.0,2.756]
[1746959087373,5.89385232,2505.5,2505.0,2.756]
[1746959087577,0.11357325,2505.1,2505.0,2.756]
[1746959087811,5.89385232,2505.5,2505.0,2.756]
[1746959088012,0.11357325,2505.1,2505.0,2.756]
[1746959088309,0.22278793,2505.4,2505.0,2.756]
[1746959088620,0.11357325,2505.1,2505.0,2.756]
[1746959088801,3.99174112,2505.2,2505.0,2.756]
[1746959088998,0.1118819,2505.1,2505.0,2.756]
[1746959089200,0.22278793,2505.1,2504.6,0.7803]
[1746959089512,0.33461344,2505.1,2504.7,2.756]
[1746959090206,0.22278793,2505.0,2504.7,2.756]
[1746959090608,0.11182551,2504.9,2504.7,2.756]
[1746959091711,3.99154932,2505.3,2504.7,2.756]
[1746959092011,0.39915493,2505.2,2504.7,2.756]
[1746959092214,4.50278228,2505.2,2504.7,2.756]
[1746959092577,1.04727221,2505.1,2504.7,2.756]
[1746959093183,0.11182551,2505.0,2504.7,2.756]
[1746959093379,4.81703471,2504.8,2504.1,2.756]
[1746959093593,14.04257061,2504.7,2504.1,2.756]
[1746959093795,8.0,2504.5,2504.1,2.756]
[1746959093997,3.99300656,2504.4,2504.1,2.756]
[1746959094214,3.99336639,2504.2,2503.8,2.756]
[1746959094386,8.0,2504.1,2503.8,2.756]
[1746959094587,8.10807546,2504.1,2503.8,2.756]
[1746959094901,0.10807546,2504.1,2503.8,2.756]
[1746959095280,0.10807546,2504.1,2503.8,3.5598]
[1746959099501,0.10807546,2504.1,2503.9,1.3681344]
[1746959099695,0.10807546,2504.1,2504.0,0.7782]
[1746959099990,1.18395493,2505.2,2504.3,0.55]
[1746959100189,1.18395493,2505.2,2504.4,2.757]
[1746959100694,0.22182164,2505.1,2504.4,2.757]
[1746959101807,1.18395493,2505.2,2504.4,2.757]
[1746959102013,0.91839549,2505.1,2504.4,2.757]
[1746959104519,8.91839549,2505.1,2504.4,2.757]
[1746959104731,12.91033352,2505.1,2504.4,2.757]
[1746959104930,8.0,2505.0,2504.4,2.757]
[1746959105395,18.05,2505.1,2504.4,2.757]
[1746959105596,18.05,2505.1,2504.5,0.7633]
[1746959106826,8.0,2505.0,2504.5,0.7633]
[1746959107525,10.05,2505.1,2504.5,0.7633]
[1746959107830,10.05,2505.1,2504.7,0.8023]
[1746959109326,10.05,2505.1,2501.5,16.33673022]
[1746959109327,8.0,2505.0,2504.6,2.757]
[1746959109627,8.0,2505.0,2504.1,0.8023]
[1746959109628,1.88061,2504.9,2504.5,2.753]
[1746959110401,1.88061,2504.9,2502.7,4.199]
[1746959110402,4.74869699,2504.7,2503.8,0.8023]
[1746959110598,0.7561,2504.5,2503.8,2.753]
[1746959110818,8.0,2504.3,2503.8,2.753]
[1746959111027,10.55520161,2504.3,2503.8,2.753]